{"text_format":"1","workbook":"xlsx","n_sheets":6,"sheets":["Introduction","Instructions","Audit Tool","Answer sheet","Summary","Recommendations"],"not_rendered":{"charts":1,"images":3,"macros":1,"external_links":2,"defined_names":34,"comments":0,"pivot_tables":0},"unopened":[],"bounds":{"document_bytes":16777216,"sheet_cells":100000,"rows_first":2000,"rows_last":500,"rows_between":2000,"halvings":0,"cell_chars":16384,"cell_head_chars":4096},"cells_cut":0,"cells_raw":0,"read":"whole","date_system":"1900"}

{"sheet":"Introduction","index":0,"n_rows":17,"n_cols":2,"rows_kept":17,"cut":false,"hidden":false,"merged":[]}
[]
[]
[]
[]
[null,"Subarachnoid Haemorrhage: Managing the flow - secondary/acute care"]
[null,"Audit Toolkit"]
[]
[null,"Thank you for downloading the toolkit for 'Subarachnoid Haemorrhage: Managing the Flow (tertiary care)'. We hope you find this useful and if you have any feedback please do contact us at info@ncepod.org.uk (see below for link). Please can you advise your local audit department if you plan to undertake this audit, it is important that they are made aware of it for the benefit of demonstrating Trust activity and also so that they are in a position to support you and endorse the activity for your benefit."]
[]
[null,"info@ncepod.org.uk"]
[]
[null,"Please complete as many questions which are applicable to the care of the patient"]
[]
[null,"For information on the recommendation to which each question assesses please click on the         button"]
[]
[null,"This toolkit can be used in conjunction with the Self Assessment Checklist. This can be found by clicking on the report image or at:"]
[null,"http://www.ncepod.org.uk/2013sah.htm"]

{"sheet":"Instructions","index":1,"n_rows":36,"n_cols":1,"rows_kept":36,"cut":false,"hidden":false,"merged":[]}
["Instructions for completion"]
[]
["Before you begin, in order to fill this tool in properly you MAY need to enable macros. To do this please click on the options button above this spreadsheet in the top left of the workbook. In the dialogue box which opens click on enable macros, ok. The spreadsheet should now be functional. "]
[]
["This data collection tool is made up of questions which can be used to assess how well your Trust is meeting recommendations made in \"Subarachnoid Haemorrhage: Managing the Flow (tertiary care)\""]
[]
["Amending the tool to include more or less patients"]
["This tool has been set up to be completed on 10 patients."]
["If the audit is undertaken on less than 10 patients, please delete out the extra rows."]
["If the audit is undertaken on more than 10 patients, please add in additional rows by copying row 9 (before populated with patient data), and inserting the copied cells above row 10."]
["Following these steps will ensure the formulas work correctly."]
[]
["For information on the recommendation to which each question assesses please click on the         button. This will take you to the recommendations page. Please click on the Audit tool tab to return to the questionnaire."]
[]
["For date fields please insert using the dd/mm/yyyy format; please insert times using the 24 hour clock (hh:mm)"]
[]
["Where a question answer is highlighted in red, this indicates this is an area of care where the recommendation (or the question assessing a recommendation) is not being met. The more answers are highlighted in red, the more likely it is a recommendation is not being met. "]
[]
["Summary data is given at the bottom of the tool (audit tool tab)."]
[]
["As the questionnaire is completed a summary of responses is collated on the summary tab."]
["Each question that relates to a recommendation will become highlighted with the following "]
["Green - Recommendation sub criteria was met in 100% of the sample"]
["Amber - Recommendation sub criteria was met in between 50-90% of the sample"]
["Red - Recommendation sub criteria was met in less than 50% of the sample"]
["Blue - Recommendation sub criteria were not answered/not applicable for any of the sample"]
[]
["The sub criteria can be changed for the tool as a whole where necessary (not for individual questions). Where this is required please amend the % criteria values in the RAG system table on the summary sheet."]
[]
["As the questionnaire is completed the radar chart will be populated based on the answers given in the recommendation sub criteria. The percentage is worked out based on the number of cases completed; therefore if data is completed for only 1 patient and the subcriteria questions are all met then a Trust will be meeting 100% of recommendations. This must be considered when analysing the results. "]
[]
["Each number point on the chart relates to a recommendation; the higher the percentage, the more likely a recommenation is being met. The total percentage for each recommendation is also displayed below the sub criteria questions."]
[]
["In order for the formulas to work, an answer must be given for each recommendation subcategory; therefore please ensure NA's are input where prompted and appropriate"]
[]
["NCEPOD does not ask for any of this data back; it is for each Trust to make a judgement as to whether they are meeting recommendations."]

{"sheet":"Audit Tool","index":2,"n_rows":30,"n_cols":51,"rows_kept":30,"cut":false,"hidden":false,"merged":[[5,34,5,41],[3,19,3,21],[4,19,4,21],[5,19,5,21],[5,0,6,0],[5,11,5,13],[5,14,5,16],[5,3,5,5],[5,6,5,8],[3,34,3,41],[2,45,2,50],[3,3,3,5],[3,6,3,8],[4,3,4,5],[4,6,4,8],[3,11,3,13],[4,11,4,13],[2,1,2,10],[3,14,3,16],[4,14,4,16],[4,34,4,41]]}
["Managing the Flow?"]
[]
[null,"PATIENT DETAILS",null,null,null,null,null,null,null,null,null,"PATIENTS ADMITTED TO NSC",null,null,null,null,null,null,null,null,null,null,null,null,null,null,null,null,null,null,null,null,null,null,null,null,null,null,null,null,null,null,null,null,null,"PATIENTS THAT DIED IN SECONDARY CARE"]
["Recommendation"]
["Question number",1,2,3,null,null,4,null,null,5,6,7,null,null,8,null,null,9,10,11,null,null,"12a","12b",13,14,15,"15b",16,17,18,19,20,21,22,null,null,null,null,null,null,null,23,24,25,26,"27a","27b","28a","28b","28c"]
[null,"Age (years)","Gender","SAH details:",null,null,"When was the patient's first arrival in hospital?",null,null,"Did the patient attend the ED?","What was the mode of admission to this NSC?\n","When did the patient's first arrival in NSC?",null,null,"NSC admission details:",null,null,"Please indicate the best description of the primary intervention (or lack thereof) undergone by the patient to secure the aneurysm","Did the patient undergo any emergency surgery in addition to the primary intervention?","Details of when primary intervention was performed",null,null,"Was there more than 48 hours between onset of aSAH and intervention?","Was there more than 48 hours between admission to NSS and intervention?","In your opinion, was there a delay in performing the procedure?","If primary intervention was delayed, what was the reason for this?","What was the grade of the operating surgeon/interventional radiologist?","If not a consultant, what was the level of consultant supervision?","What was the patient's functional status on following the procedure? (when discharged from theatre/recovery to ward/ICU/HDU/etc)","Was there documented formal assessment and/or treatment of the patient by the following during the admission?","Was the inpatient rehabilitation of this patient adequate?","What was the patient's functional status on discharge?","Was there adequate planning for rehabilitation for this patient?","What was the discharge destination of the patient?","Is there any evidence of the following at time of discharge:",null,null,null,null,null,null,null,"Is there any evidence of any delays in transfer to specialist rehabilitation?","Is there any evidence that the patient was discharged too soon?","Was the post-discharge support planning adequate in your opinion?","Was the death discussed at a mortality and morbidity meeting?","Was brain stem death testing performed?","If YES to 27a, was brain stem death diagnosed?","Was the patient suitable for organ donation?","If YES to 28a, did organ donation occur?","If NO to 28b, why not?"]
[null,null,null,"dd/mm/yyyy","hh:mm","Day","dd/mm/yyyy","hh:mm","Day",null,"Please note: If the patient presented to secondary/acute care in this hospital, the secondary/acute part of the SAH audit tool can also be completed","dd/mm/yyyy","hh:mm","Day","dd/mm/yyyy","hh:mm","Day",null,null,"dd/mm/yyyy","hh:mm","Day",null,null,null,"Please select all that apply (answers may be multiple)",null,null,null,"Please select all that apply (answers may be multiple)",null,null,null,null,"Referral to specialist case worker/SAH nurse","Referral of patient to SAH support group","Patient support via telephone contact","Neuropsychology referral","Physiotherapy referral","Occupational therapy referral","S&L therapy referral","Issuing patients/ relatives with information on living post-SAH"]
["Patient 1",null,null,null,null,null,null,null,null,null,null,null,null,null,null,null,null,null,null,null,null,null,null,null,null,null,null,{"$f":"IF(AA8=\"Consultant\",\"NA\",IF(AA8=\"Staff grade/Associate specialist\",\"\",IF(AA8=\"Trainee with CCT\",\"\",IF(AA8=\"Senior specialist trainee\",\"\",IF(AA8=\"Junior specialist trainee\",\"\",IF(AA8=\"Basic grade\",\"\",IF(AA8=\"Other\",\"\")))))))","v":false},null,null,null,null,null,null,null,null,null,null,null,null,null,null,null,null,null,null,null,{"$f":"IF(AU8=\"Yes\",\"\",IF(AU8=\"No\",\"NA\",IF(AU8=\"Unable to answer\",\"NA\",IF(AU8=\"NA\",\"NA\"))))","v":false},null,{"$f":"IF(AW8=\"Yes\",\"\",IF(AW8=\"No\",\"NA\",IF(AW8=\"Unable to answer\",\"NA\",IF(AW8=\"NA\",\"NA\"))))","v":false},{"$f":"IF(AX8=\"No\",\"\",IF(AX8=\"Yes\",\"NA\",IF(AX8=\"Unable to answer\",\"NA\",IF(AX8=\"NA\",\"NA\"))))","v":false}]
["Patient 2",null,null,null,null,null,null,null,null,null,null,null,null,null,null,null,null,null,null,null,null,null,null,null,null,null,null,false,null,null,null,null,null,null,null,null,null,null,null,null,null,null,null,null,null,null,null,false,null,false,false]
["Patient 3",null,null,null,null,null,null,null,null,null,null,null,null,null,null,null,null,null,null,null,null,null,null,null,null,null,null,false,null,null,null,null,null,null,null,null,null,null,null,null,null,null,null,null,null,null,null,false,null,false,false]
["Patient 4",null,null,null,null,null,null,null,null,null,null,null,null,null,null,null,null,null,null,null,null,null,null,null,null,null,null,false,null,null,null,null,null,null,null,null,null,null,null,null,null,null,null,null,null,null,null,false,null,false,false]
["Patient 5",null,null,null,null,null,null,null,null,null,null,null,null,null,null,null,null,null,null,null,null,null,null,null,null,null,null,false,null,null,null,null,null,null,null,null,null,null,null,null,null,null,null,null,null,null,null,false,null,false,false]
["Patient 6",null,null,null,null,null,null,null,null,null,null,null,null,null,null,null,null,null,null,null,null,null,null,null,null,null,null,false,null,null,null,null,null,null,null,null,null,null,null,null,null,null,null,null,null,null,null,false,null,false,false]
["Patient 7",null,null,null,null,null,null,null,null,null,null,null,null,null,null,null,null,null,null,null,null,null,null,null,null,null,null,false,null,null,null,null,null,null,null,null,null,null,null,null,null,null,null,null,null,null,null,false,null,false,false]
["Patient 8",null,null,null,null,null,null,null,null,null,null,null,null,null,null,null,null,null,null,null,null,null,null,null,null,null,null,false,null,null,null,null,null,null,null,null,null,null,null,null,null,null,null,null,null,null,null,false,null,false,false]
["Patient 9",null,null,null,null,null,null,null,null,null,null,null,null,null,null,null,null,null,null,null,null,null,null,null,null,null,null,false,null,null,null,null,null,null,null,null,null,null,null,null,null,null,null,null,null,null,null,false,null,false,false]
["Patient 10                                                                                           Add new patient (above this row before populating with data)",null,null,null,null,null,null,null,null,null,null,null,null,null,null,null,null,null,null,null,null,null,null,null,null,null,null,false,null,null,null,null,null,null,null,null,null,null,null,null,null,null,null,null,null,null,null,false,null,false,false]
[]
["Yes n",null,null,null,null,null,null,null,null,null,null,null,null,null,null,null,null,null,null,null,null,null,{"$f":"COUNTIF(W8:W17,\"Yes\")","v":0},{"$f":"COUNTIF(X8:X17,\"Yes\")","v":0},{"$f":"COUNTIF(Y8:Y17,\"Yes\")","v":0},null,null,null,null,null,0,null,0,null,0,0,0,0,0,0,0,0,0,0,0,null,null,null,null,null,{"$f":"COUNTIF(AY8:AY17,\"Refused by next of kin\")","v":0}]
["Yes %",null,null,null,null,null,null,null,null,null,null,null,null,null,null,null,null,null,null,null,null,null,{"$f":"IF(ISERROR(W19/W23),\"%\",W19/W23*100)","v":"%"},{"$f":"IF(ISERROR(X19/X23),\"%\",X19/X23*100)","v":"%"},"%",null,null,null,null,null,"%",null,"%",null,"%","%","%","%","%","%","%","%","%","%","%",null,null,null,null,null,"%"]
["No n",null,null,null,null,null,null,null,null,null,null,null,null,null,null,null,null,null,null,null,null,null,{"$f":"COUNTIF(W8:W17,\"No\")","v":0},{"$f":"COUNTIF(X8:X17,\"No\")","v":0},0,null,null,null,null,null,0,null,0,null,0,0,0,0,0,0,0,0,0,0,0,null,null,null,null,null,{"$f":"COUNTIF(AY8:AY17,\"Not considered by medical staff\")","v":0}]
["No %",null,null,null,null,null,null,null,null,null,null,null,null,null,null,null,null,null,null,null,null,null,{"$f":"IF(ISERROR(W21/W23),\"%\",W21/W23*100)","v":"%"},{"$f":"IF(ISERROR(X21/X23),\"%\",X21/X23*100)","v":"%"},"%",null,null,null,null,null,"%",null,"%",null,"%","%","%","%","%","%","%","%","%","%","%",null,null,null,null,null,"%"]
["Sub total",null,null,null,null,null,null,null,null,null,null,null,null,null,null,null,null,null,null,null,null,null,{"$f":"SUM(W19+W21)","v":0},{"$f":"SUM(X19+X21)","v":0},0,null,null,null,null,null,0,null,0,null,0,0,0,0,0,0,0,0,0,0,0,null,null,null,null,null,0]
["No data/Not answered",null,null,null,null,null,null,null,null,null,null,null,null,null,null,null,null,null,null,null,null,null,{"$f":"W28+W29","v":10},{"$f":"X28+X29","v":10},10,null,null,null,null,null,10,null,10,null,10,10,10,10,10,10,10,10,10,10,10,null,null,null,null,null,10]
["Not applicable",null,null,null,null,null,null,null,null,null,null,null,null,null,null,null,null,null,null,null,null,null,{"$f":"COUNTIF(W8:W17,\"NA\")","v":0},{"$f":"COUNTIF(X8:X17,\"NA\")","v":0},0,null,null,null,null,null,0,null,{"$f":"COUNTIF(AG8:AG17,\"NA (died prior to discharge)\")","v":0},null,{"$f":"COUNTIF(AI8:AI17,\"NA (died prior to discharge)\")","v":0},{"$f":"COUNTIF(AJ8:AJ17,\"NA (died prior to discharge)\")","v":0},0,0,0,0,0,0,0,0,0,null,null,null,null,null,0]
["Number of cases included in audit",null,null,null,null,null,null,null,null,null,null,null,null,null,null,null,null,null,null,null,null,null,{"$f":"W19+W21+W24+W25","v":10},{"$f":"X19+X21+X24+X25","v":10},10,null,null,null,null,null,10,null,10,null,10,10,10,10,10,10,10,10,10,10,10,null,null,null,null,null,10]
[]
[false,null,null,null,null,null,null,null,null,null,null,null,null,null,null,null,null,null,null,null,null,null,{"$f":"COUNTIF(W8:W17,\"FALSE\")","v":0},{"$f":"COUNTIF(X8:X17,\"FALSE\")","v":0},0,null,null,null,null,null,0,null,0,null,0,0,0,0,0,0,0,0,0,0,0,null,null,null,null,null,10]
["No data",null,null,null,null,null,null,null,null,null,null,null,null,null,null,null,null,null,null,null,null,null,{"$f":"COUNTIF(W8:W17,\"\")","v":10},{"$f":"COUNTIF(X8:X17,\"\")","v":10},10,null,null,null,null,null,10,null,10,null,10,10,10,10,10,10,10,10,10,10,10,null,null,null,null,null,0]
["Summary data",null,null,null,null,null,null,null,null,null,null,null,null,null,null,null,null,null,null,null,null,null,{"$f":"IF(W24=W26,\"No data\", IF(W25=W26,\"NA\",IF(W24+W25=W26,\"NA\",W20)))","v":"No data"},{"$f":"IF(X24=X26,\"No data\", IF(X25=X26,\"NA\",IF(X24+X25=X26,\"NA\",X20)))","v":"No data"},{"$f":"IF(Y24=Y26,\"No data\", IF(Y25=Y26,\"NA\",IF(Y24+Y25=Y26,\"NA\",Y22)))","v":"No data"},null,null,null,null,null,"No data",null,"No data",null,"No data","No data","No data","No data","No data","No data","No data","No data","No data",{"$f":"IF(AR24=AR26,\"No data\", IF(AR25=AR26,\"NA\",IF(AR24+AR25=AR26,\"NA\",AR22)))","v":"No data"},"No data",null,null,null,null,null,"No data"]

{"sheet":"Answer sheet","index":3,"n_rows":94,"n_cols":5,"rows_kept":94,"cut":false,"hidden":true,"merged":[]}
["A1",null,"A2",null,"A3.1"]
["Male ",null,"Yes",null,"GP referral direct to neurosurgery following clinical review in person"]
["Female",null,"No",null,"GP referral direct to neurosurgery following telephone consultation"]
[null,null,null,null,"GP referral to secondary/acute care following clinical review in person (this hospital)"]
[null,null,null,null,"GP referral to secondary/acute care following clinical review in person (other hospital)"]
[null,null,null,null,"GP referral to secondary/acute care following telephone consultation (this hospital)"]
[null,null,null,null,"GP referral to secondary/acute care following telephone consultation (other hospital)"]
[null,null,null,null,"Other transfer from secondary/acute care (different hospital)"]
[null,null,null,null,"Referred to NSC following self referral to ED (this hospital)"]
[null,null,null,null,"Referral and transfer following self referral to ED (other hospital)"]
[null,null,null,null,"Referral to NSC following presentation to ED via ambulance/999 call (this hospital)"]
[null,null,null,null,"Referral and transfer to NSC following presentation to ED via ambulance/999 call (other hospital)"]
[null,null,null,null,"Other transfer from tertiary care (other NSC)"]
[null,null,null,null,"Referral from Outpatient Clinic"]
[null,null,null,null,"Other"]
["A4"]
["Endovascular coiling of the aneurysm"]
["Clipping following attempted coiling"]
["Neurosurgical clipping of the aneurysm"]
["No procedure - decision to manage the patient conservatively"]
["No procedure - intervention planned but patient died before it was possible"]
[]
["A5",null,null,null,"A6"]
["Yes",null,null,null,"Delayed presentation to hospital"]
["No",null,null,null,"Delayed diagnosis in acute/secondary care"]
["Unable to answer",null,null,null,"Delayed referral in seconday care"]
[null,null,null,null,"Lack of neurosurgeon able to clip the aneurysm - weekend"]
[null,null,null,null,"Lack of neurosurgeon able to clip the aneurysm - out of hours"]
[null,null,null,null,"Lack of interventional radiology cover - weekend"]
[null,null,null,null,"Lack of interventional radiology cover - out of hours"]
[null,null,null,null,"Clinical reason - delay was appropriate/necessary"]
[null,null,null,null,"Delayed acceptance by NSC"]
[null,null,null,null,"Awaiting review by other specialist clinician"]
[null,null,null,null,"Lack of other resources"]
[null,null,null,null,"Unable to answer"]
[]
["A7",null,null,null,"A.81"]
["Present/scrubbed",null,null,null,"No symptoms"]
["Present/unscrubbed",null,null,null,"Slight disability"]
["Support via telephone",null,null,null,"Moderate disability"]
["None",null,null,null,"Severe disability"]
["Unable to answer",null,null,null,"No disability despite symptoms"]
[null,null,null,null,"Unable to answer"]
[]
["A9",null,null,null,"A10"]
["Physiotherapy",null,null,null,"Yes"]
["Speech and language therapy",null,null,null,"No"]
["Occupational therapy",null,null,null,"Unable to answer"]
["Neuropsychology",null,null,null,"NA"]
["Dedicated SAH nursing"]
["Dedicated rehabilitation consultant",null,null,null,"A12"]
["Specialist rehabilitation nursing",null,null,null,"Yes"]
["None of these",null,null,null,"No"]
["NA",null,null,null,"Unable to answer"]
[null,null,null,null,"NA (died prior to discharge)"]
["A11"]
["No symptoms",null,null,null,"A13"]
["Slight disability",null,null,null,"Discharged to previous place of residence"]
["Moderate disability",null,null,null,"Discharged to a rehabilitation unit"]
["Severe disability",null,null,null,"Discharged to other hospital for further treatment"]
["No disability despite symptoms",null,null,null,"Discharged to other hospital for palliative care"]
["Unable to answer",null,null,null,"Nursing home"]
["NA (died prior to discharge)",null,null,null,"Other"]
[null,null,null,null,"Unable to answer"]
[null,null,null,null,"NA (died prior to discharge)"]
[]
["A14",null,null,null,"A111"]
["Referral to specialist case worker/SAH nurse",null,null,null,"Yes"]
["Referral of patient to SAH support organisation",null,null,null,"No"]
["Patient support via telephone contact",null,null,null,"Insufficient data"]
["Neuropsychology referral",null,null,null,"NA (died prior to discharge)"]
["Physiotherapy referral"]
["Occupational therapy referral"]
["Speech and language therapy referral"]
["Issuing patients/relatives with information on living post-SAH"]
["NA (died prior to discharge)"]
["Insufficient data"]
["None of these"]
[]
["A15"]
["Not considered by medical staff"]
["Refused by next of kin"]
[]
["A16"]
["Consultant",null,null,null,"Physiotherpay"]
["Staff grade/Associate specialist",null,null,null,"Speech and language therapy"]
["Trainee with CCT",null,null,null,"Occupational therapy"]
["Senior specialist trainee",null,null,null,"Neuropsychology"]
["Junior specialist trainee",null,null,null,"Dedicated SAH nursing"]
["Basic grade"]
["Other",null,null,null,"Dedicad rehabilitation consultant"]
[null,null,null,null,"Specialist rehabilitation nursing"]
[null,null,null,null,"None of these"]
[null,null,null,null,"NA"]

{"sheet":"Summary","index":4,"n_rows":25,"n_cols":16,"rows_kept":25,"cut":false,"hidden":false,"merged":[[0,2,0,4],[18,13,22,13],[18,14,22,14],[2,9,2,11],[2,13,2,15],[18,9,18,11]]}
[null,null,"RADAR CHART"]
[]
[null,null,null,null,null,null,null,null,null,"Recommendation - Sub criteria question number (reference only)",null,null,null,"Recommendation - Sub criteria questions (score)"]
[null,null,null,null,null,null,null,null,null,2,4,5,null,2,4,5]
[null,null,null,null,null,null,null,null,null,"12a",18,"28c",null,{"$f":"'Audit Tool'!W30","v":"No data"},{"$f":"'Audit Tool'!AE30","v":"No data"},{"$f":"'Audit Tool'!AY30","v":"No data"}]
[null,null,null,null,null,null,null,null,null,"12b",20,null,null,{"$f":"'Audit Tool'!X30","v":"No data"},{"$f":"'Audit Tool'!AG30","v":"No data"}]
[null,null,null,null,null,null,null,null,null,13,"22. i",null,null,{"$f":"'Audit Tool'!Y30","v":"No data"},{"$f":"'Audit Tool'!AI30","v":"No data"}]
[null,null,null,null,null,null,null,null,null,null,"22. ii",null,null,null,{"$f":"'Audit Tool'!AJ30","v":"No data"}]
[null,null,null,null,null,null,null,null,null,null,"22. iii",null,null,null,{"$f":"'Audit Tool'!AK30","v":"No data"}]
[null,null,null,null,null,null,null,null,null,null,"22. iv",null,null,null,{"$f":"'Audit Tool'!AL30","v":"No data"}]
[null,null,null,null,null,null,null,null,null,null,"22. v",null,null,null,{"$f":"'Audit Tool'!AM30","v":"No data"}]
[null,null,null,null,null,null,null,null,null,null,"22. vi",null,null,null,{"$f":"'Audit Tool'!AN30","v":"No data"}]
[null,null,null,null,null,null,null,null,null,null,"22. vii",null,null,null,{"$f":"'Audit Tool'!AO30","v":"No data"}]
[null,null,null,null,null,null,null,null,null,null,"22. viii",null,null,null,{"$f":"'Audit Tool'!AP30","v":"No data"}]
[null,null,null,null,null,null,null,null,null,null,24,null,null,null,{"$f":"'Audit Tool'!AR30","v":"No data"}]
[null,null,null,null,null,null,null,null,null,null,25,null,null,null,{"$f":"'Audit Tool'!AS30","v":"No data"}]
[]
[]
[null,null,null,null,null,null,null,null,null,"Average % of recommendation",null,null,null,"RAG system (NCEPOD recommends these are set at the following limits, however these can be adapted by your Trust where appropriate by amending the thresholds as required)","%"]
[null,null,null,null,null,null,null,null,null,{"$f":"IF(N5=\"No data\",\"No data\",IF(N5=\"NA\",\"NA\",IF(N5=\"%\",\"%\",SUM(N5:N7)/COUNT(N5:N7))))","v":"No data"},{"$f":"IF(O5=\"No data\",\"No data\",IF(O5=\"NA\",\"NA\",IF(O5=\"%\",\"%\",SUM(O5:O16)/COUNT(O5:O16))))","v":"No data"},{"$f":"IF(P5=\"No data\",\"No data\",IF(P5=\"NA\",\"NA\",IF(P5=\"%\",\"%\",SUM(P5)/COUNT(P5))))","v":"No data"}]
[]
[]
[]
[null,null,null,null,null,null,null,null,null,null,null,null,null,"Green",100]
[null,null,null,null,null,null,null,null,null,null,null,null,null,"Amber",50]

{"sheet":"Recommendations","index":5,"n_rows":5,"n_cols":2,"rows_kept":5,"cut":false,"hidden":false,"merged":[[0,0,0,1]]}
["RECOMMENDATIONS"]
[1,"The nationally-agreed standard (\"National Clinical Guideline for Stroke\") of securing ruptured aneurysms within 48 hours should be met consistently and comprehensivel by healthcare professionals who trat this group of patients. This will require providers to assess the sevice they deliver and mvoe towards a seven-day-service"]
[2,"Neurosurgical/Neurosciences centres must ensure that trainees in neurosurgery and neuroradiology develop appropriate comptencies for future consultant practice"]
[3,"Appropriately funded rehabilitation for all patients following an aneurysmal subarachnoid haemorrhage should include, as a minimum, access to information for patients and relatives, specialist subarachnoid haemorrhage nurses and comprehensive in-patient and out-patient rehabilitation services including appropriate neuropsychological support"]
[4,"Organ donation rates following datal aneurysmal subarachnoid haemorrhage should be audited and policies adopted to increase the frequency with which this occurs"]